bitfinex-derivatives/quotes_SOLF0:USTF0_20260211
["timestamp","ask_amount","ask_price","bid_price","bid_amount"]
[1770839981102,30.70910011,79.715,79.677,31.50831826]
[1770839982610,23.44276616,79.71,79.67,11.3038]
[1770839982813,23.44276616,79.71,79.67,20.20551826]
[1770839983711,23.44276616,79.71,79.676,11.303]
[1770839983913,4.03126605,79.71,79.677,20.20551826]
[1770839984807,15.37518957,79.739,79.622,63.17237452]
[1770839984808,4.03126605,79.7,79.661,20.20551826]
[1770839985008,19.41150011,79.707,79.661,20.20551826]
[1770839985207,28.50350667,79.706,79.661,20.20551826]
[1770839985405,30.71060011,79.704,79.669,11.3039]
[1770839985612,4.03126605,79.7,79.669,11.3039]
[1770839987414,9.096087,79.699,79.663,20.20551826]
[1770839987616,19.41150011,79.703,79.663,20.20551826]
[1770839987821,9.09520916,79.702,79.663,20.20551826]
[1770839988008,9.09520916,79.701,79.663,20.20551826]
[1770839988209,4.03126605,79.7,79.663,20.20551826]
[1770839988708,4.03126605,79.7,79.665,11.3045]
[1770839989016,4.0329706,79.7,79.666,20.20551826]
[1770839989716,9.10371177,79.699,79.666,20.20551826]
[1770839989926,4.0329706,79.7,79.666,20.20551826]
[1770839990109,9.1026249,79.699,79.666,20.20551826]
[1770839990310,9.1058002,79.698,79.666,20.20551826]
[1770839990510,9.1058002,79.697,79.666,20.20551826]
[1770839990710,9.1058002,79.696,79.668,11.3041]
[1770839990906,9.1058002,79.695,79.668,11.3041]
[1770839991106,4.0329706,79.7,79.669,18.85598496]
[1770839991414,9.10578787,79.699,79.669,18.85598496]
[1770839991718,4.0329706,79.7,79.669,18.85598496]
[1770839991916,9.1058883,79.699,79.669,18.85598496]
[1770839992117,4.0329706,79.7,79.669,18.85598496]
[1770839992322,4.0329706,79.72,79.679,18.85598496]
[1770839992510,4.0329706,79.71,79.679,18.85598496]
[1770839992714,9.10089802,79.709,79.679,18.85598496]
[1770839993015,4.0329706,79.71,79.679,18.85598496]
[1770839993216,9.09926572,79.709,79.679,18.85598496]
[1770839993412,9.09860442,79.708,79.679,18.85598496]
[1770839993721,4.0329706,79.71,79.679,18.85598496]
[1770839993915,9.09977921,79.709,79.679,18.85598496]
[1770839994114,4.0329706,79.71,79.679,18.85598496]
[1770839994315,4.0329706,79.71,79.644,22.615]
[1770839994316,23.65441107,79.7,79.669,11.304]
[1770839994616,9.09977567,79.699,79.669,11.304]
[1770839994814,23.65441107,79.7,79.669,11.304]
[1770839995012,9.09898218,79.699,79.669,11.304]
[1770839995214,9.09935954,79.698,79.669,11.304]
[1770839995412,23.65441107,79.7,79.669,11.304]
[1770839995609,9.09946308,79.699,79.669,11.304]
[1770839995814,9.09946308,79.698,79.669,11.304]
[1770839996010,23.65441107,79.7,79.669,11.304]
[1770839996314,9.09946062,79.699,79.669,11.304]
[1770839996514,9.09946062,79.698,79.669,11.304]
[1770839996721,23.65441107,79.7,79.669,11.304]
[1770839996925,9.09873939,79.699,79.669,11.304]
[1770839997123,9.09873939,79.698,79.669,11.304]
[1770839997325,11.2998,79.699,79.664,18.85598496]
[1770839997510,9.09894474,79.698,79.664,18.85598496]
[1770839997721,23.65441107,79.7,79.664,18.85598496]
[1770839997917,9.09925516,79.699,79.664,18.85598496]
[1770839998117,9.09925516,79.698,79.664,18.85598496]
[1770839998422,23.65441107,79.7,79.664,18.85598496]
[1770839998723,9.10147212,79.699,79.665,11.3045]
[1770839998925,9.10147212,79.698,79.666,18.85598496]
[1770839999120,23.65441107,79.7,79.666,18.85598496]
[1770839999321,9.10143304,79.699,79.666,18.85598496]
[1770839999626,9.10143304,79.698,79.666,18.85598496]
[1770839999825,23.65441107,79.7,79.667,11.3043]
[1770840000129,9.10153396,79.699,79.667,11.3043]
[1770840000332,4.0329706,79.68,79.623,18.85598496]
[1770840000519,19.62144047,79.69,79.631,18.85598496]
[1770840000520,4.0329706,79.67,79.631,18.85598496]
[1770840000716,15.3355706,79.68,79.637,11.3085]
[1770840000919,15.3355706,79.68,79.638,18.85598496]
[1770840001419,4.0329706,79.68,79.648,18.85598496]
[1770840001618,9.09962898,79.679,79.648,18.85598496]
[1770840001822,4.0329706,79.69,79.648,18.85598496]
[1770840002122,4.0329706,79.68,79.648,18.85598496]
[1770840002330,9.09903559,79.679,79.648,18.85598496]
[1770840002522,4.0329706,79.68,79.648,18.85598496]
[1770840002725,4.0329706,79.68,79.651,18.85598496]
[1770840003321,4.0329706,79.67,79.639,18.85598496]
[1770840003516,9.10367067,79.669,79.639,18.85598496]
[1770840003722,9.10367067,79.668,79.639,18.85598496]
[1770840003925,4.0329706,79.67,79.639,18.85598496]
[1770840004230,9.1027504,79.669,79.639,18.85598496]
[1770840004424,4.0329706,79.67,79.639,18.85598496]
[1770840004620,9.10270645,79.669,79.639,18.85598496]
[1770840004830,4.0329706,79.67,79.639,18.85598496]
[1770840005533,9.09670891,79.669,79.642,18.85598496]
[1770840005727,4.0329706,79.69,79.642,18.85598496]
[1770840005928,9.09791058,79.689,79.642,18.85598496]
[1770840006123,9.09791058,79.688,79.66,18.85598496]
[1770840006320,9.09791058,79.687,79.66,18.85598496]
[1770840006524,4.0329706,79.7,79.66,18.85598496]
[1770840006725,11.3001,79.697,79.66,18.85598496]
[1770840006923,9.09843809,79.696,79.66,18.85598496]
[1770840007122,9.09843809,79.695,79.66,18.85598496]
[1770840007322,11.3001,79.697,79.66,18.85598496]
[1770840007323,9.09843809,79.694,79.66,18.85598496]
[1770840007517,11.60016293,79.705,79.625,139.28]
[1770840007518,19.62144047,79.689,79.654,11.306]
[1770840007720,9.09843809,79.688,79.655,18.85598496]
[1770840007921,15.63313353,79.71,79.655,18.85598496]
[1770840008228,4.0329706,79.71,79.655,18.85598496]
[1770840008625,19.62144047,79.699,79.643,18.85598496]
[1770840008933,4.0329706,79.67,79.629,18.85598496]
[1770840009437,4.0329706,79.66,79.635,11.3087]
[1770840009623,4.0329706,79.66,79.629,18.85598496]
[1770840010631,4.0329706,79.66,79.63,11.3096]
[1770840010831,4.0329706,79.66,79.63,30.16558496]
[1770840011027,19.62144047,79.67,79.609,100.16]
[1770840011028,4.0329706,79.65,79.618,18.85598496]
[1770840011233,4.0329706,79.66,79.618,18.85598496]
[1770840011824,4.0329706,79.66,79.622,18.85598496]
[1770840012328,23.65441107,79.67,79.622,18.85598496]
[1770840012730,23.65441107,79.67,79.636,11.3086]
[1770840013132,4.0329706,79.67,79.637,18.85598496]
[1770840013534,4.0329706,79.68,79.637,18.85598496]
[1770840013731,4.0329706,79.68,79.643,18.85598496]
[1770840014037,4.0329706,79.69,79.643,18.85598496]
[1770840014638,4.0329706,79.69,79.657,11.3057]
[1770840016536,15.37518957,79.717,79.622,107.3]
[1770840016537,19.62144047,79.679,79.63,18.85598496]
[1770840016735,4.0329706,79.67,79.63,18.85598496]
[1770840017142,4.0329706,79.67,79.637,11.3085]
[1770840017338,4.0329706,79.66,79.637,11.3085]
[1770840017643,4.0329706,79.67,79.637,11.3085]
[1770840017942,4.0329706,79.68,79.649,18.85598496]
[1770840018646,4.0329706,79.67,79.636,18.85598496]
[1770840019838,4.0329706,79.67,79.638,11.3083]
[1770840020232,4.0329706,79.67,79.639,18.85598496]
[1770840020444,4.0329706,79.67,79.641,11.3079]
[1770840020944,23.65441107,79.68,79.641,11.3079]
[1770840021739,20.12739735,79.678,79.628,18.83575678]
[1770840021945,4.0329706,79.66,79.628,18.83575678]
[1770840022341,4.0329706,79.66,79.635,11.3088]
[1770840022543,4.0329706,79.67,79.628,18.83575678]
[1770840024747,4.0329706,79.67,79.64,11.3081]
[1770840025042,4.0329706,79.68,79.641,18.83575678]
[1770840025847,4.0329706,79.68,79.645,18.83575678]
[1770840026451,4.0329706,79.67,79.65,11.3067]
[1770840026658,4.0329706,79.67,79.632,18.83575678]
[1770840027564,4.0329706,79.66,79.633,31.09780281]
[1770840027754,4.0329706,79.66,79.633,19.78880281]
[1770840027955,4.0329706,79.66,79.638,11.3083]
[1770840028158,4.0329706,79.67,79.638,11.3083]
[1770840030959,4.0329706,79.67,79.633,19.78880281]
[1770840031258,11.3026,79.68,79.608,107.70463972]
[1770840031259,15.3355706,79.68,79.644,19.78880281]
[1770840031461,9.04119148,79.679,79.644,19.78880281]
[1770840031761,9.04119148,79.678,79.644,19.78880281]
[1770840031962,15.3355706,79.68,79.644,19.78880281]
[1770840032156,9.04119198,79.679,79.644,19.78880281]
[1770840032356,9.04119198,79.678,79.644,19.78880281]
[1770840032557,9.04119198,79.677,79.644,19.78880281]
[1770840032758,15.3355706,79.68,79.645,11.3074]
[1770840033063,9.05457078,79.679,79.645,11.3074]
[1770840033259,23.46967288,79.66,79.617,19.78880281]
[1770840033459,4.0329706,79.64,79.601,19.78880281]
[1770840033666,4.0329706,79.63,79.601,19.78880281]
[1770840034156,19.43670228,79.649,79.601,19.78880281]
[1770840034157,4.0329706,79.64,79.601,19.78880281]
[1770840034762,19.43670228,79.649,79.601,19.78880281]
[1770840034959,23.46967288,79.63,79.581,19.78880281]
[1770840035164,23.46967288,79.63,79.593,11.3147]
[1770840035365,23.46967288,79.63,79.581,19.78880281]
[1770840035665,4.0329706,79.63,79.581,19.78880281]
[1770840035964,4.0329706,79.65,79.596,19.78880281]
[1770840037562,4.0329706,79.66,79.613,19.78880281]
[1770840037757,4.0329706,79.65,79.613,19.78880281]
[1770840038564,19.43670228,79.65,79.591,19.78880281]
[1770840038869,23.46967288,79.64,79.591,19.78880281]
[1770840039370,23.46967288,79.64,79.612,11.3121]
[1770840041762,4.0329706,79.63,79.591,19.78880281]
[1770840043764,4.0329706,79.63,79.597,11.3142]
[1770840044071,4.0329706,79.63,79.597,19.78880281]
[1770840044274,4.0329706,79.65,79.597,19.78880281]
[1770840044473,9.04896417,79.649,79.608,19.78880281]
[1770840044768,4.0329706,79.64,79.608,19.78880281]
[1770840045076,4.0329706,79.63,79.599,11.3139]
[1770840047074,19.43670228,79.639,79.605,11.3131]
[1770840047567,19.43670228,79.639,79.599,19.78880281]
[1770840048366,4.0329706,79.63,79.6,11.3137]
[1770840048976,4.0329706,79.63,79.6,31.10250281]
[1770840050772,4.0329706,79.63,79.601,20.0415052]
[1770840051081,4.03980458,79.65,79.604,20.0415052]
[1770840051268,9.05218185,79.649,79.604,20.0415052]
[1770840051574,4.03980458,79.66,79.624,20.0415052]
[1770840051877,4.03980458,79.65,79.624,20.0415052]
[1770840052667,4.03980458,79.65,79.601,20.0415052]
[1770840053770,4.03980458,79.65,79.615,11.3116]
[1770840054573,15.37518957,79.692,79.588,22.6311]
[1770840054574,4.03980458,79.66,79.622,20.0415052]
[1770840054773,9.05774749,79.659,79.622,20.0415052]
[1770840054979,4.03980458,79.66,79.622,20.0415052]
[1770840055164,9.05601745,79.659,79.622,20.0415052]
[1770840055366,4.03980458,79.66,79.622,20.0415052]
[1770840055570,9.05490255,79.659,79.622,20.0415052]
[1770840055770,4.03980458,79.66,79.623,11.3105]
[1770840055967,9.0569088,79.659,79.623,11.3105]
[1770840056174,4.03980458,79.66,79.623,11.3105]
[1770840058080,11.3058,79.657,79.622,20.0415052]
[1770840058982,4.03980458,79.66,79.624,20.0415052]
[1770840059175,4.03980458,79.67,79.624,20.0415052]
[1770840059377,9.05628365,79.669,79.624,20.0415052]
[1770840059580,9.05628365,79.668,79.624,20.0415052]
[1770840059776,15.34230458,79.68,79.641,20.0415052]
[1770840060082,22.5948,79.716,79.641,20.0415052]
[1770840060083,19.78326303,79.695,79.641,20.0415052]
[1770840060280,9.05625602,79.694,79.641,20.0415052]
[1770840060484,4.03980458,79.69,79.641,20.0415052]
[1770840060673,11.3015,79.687,79.65,20.0415052]
[1770840060874,19.78326303,79.695,79.65,24.08130978]
[1770840060875,9.05625602,79.686,79.65,24.08130978]
[1770840061076,4.03980458,79.69,79.65,20.0415052]
[1770840061279,9.05010938,79.689,79.65,20.0415052]
[1770840061578,4.03980458,79.69,79.65,20.0415052]
[1770840061579,9.05010938,79.688,79.65,20.0415052]
[1770840061784,9.05010938,79.687,79.65,20.0415052]
[1770840061973,9.05010938,79.686,79.65,20.0415052]
[1770840062174,9.05010938,79.685,79.65,20.0415052]
[1770840062377,4.03980458,79.69,79.65,20.0415052]
[1770840062676,19.78326303,79.708,79.661,20.0415052]
[1770840062978,19.78326303,79.721,79.674,20.0415052]
[1770840063184,4.03980458,79.73,79.681,20.0415052]
[1770840064778,4.03980458,79.73,79.691,11.3008]
[1770840065672,19.78326303,79.745,79.698,20.0415052]
[1770840065986,19.78326303,79.758,79.701,20.0415052]
[1770840066485,4.03980458,79.74,79.704,11.299]
[1770840066876,19.78326303,79.749,79.704,20.0415052]
[1770840067278,4.03980458,79.75,79.704,20.0415052]
[1770840067881,4.03980458,79.75,79.712,11.2979]
[1770840068180,4.03980458,79.76,79.713,20.0415052]
[1770840068379,4.03980458,79.76,79.715,11.2975]
[1770840068579,4.03980458,79.76,79.716,20.0415052]
[1770840070380,4.03980458,79.77,79.72,20.0415052]
[1770840071881,4.03980458,79.77,79.728,11.2956]
[1770840072075,4.03980458,79.77,79.729,20.0415052]
[1770840072781,19.78326303,79.776,79.732,20.0415052]
[1770840072989,4.03980458,79.78,79.732,20.0415052]
[1770840073884,4.03980458,79.78,79.738,20.0415052]
[1770840074686,19.78326303,79.779,79.686,20.0415052]
[1770840074983,4.03980458,79.76,79.701,20.0415052]
[1770840075185,4.03980458,79.75,79.701,20.0415052]
[1770840075591,4.03980458,79.77,79.731,20.0415052]
[1770840075887,4.03980458,79.74,79.704,20.0415052]
[1770840076286,4.03980458,79.73,79.69,20.0415052]
[1770840076488,4.03980458,79.71,79.671,20.0415052]
[1770840077590,4.03980458,79.72,79.671,20.0415052]
[1770840077792,4.03980458,79.72,79.683,11.3019]
[1770840078992,19.78326303,79.727,79.683,11.3019]
[1770840079685,10.79861247,79.72,79.651,20.0415052]
[1770840079984,19.78326303,79.719,79.651,20.0415052]
[1770840080380,19.37387172,79.699,79.654,11.3061]
[1770840080787,19.37387172,79.699,79.654,31.96143874]
[1770840080987,30.67377172,79.699,79.654,31.96143874]
[1770840081188,19.37387172,79.698,79.639,20.65533874]
[1770840082894,19.37387172,79.698,79.647,20.65533874]
[1770840083190,19.37387172,79.714,79.647,20.65533874]
[1770840083396,19.37387172,79.714,79.665,20.65533874]
[1770840084190,19.37387172,79.728,79.665,20.65533874]
[1770840084593,10.79861247,79.74,79.689,20.65533874]
[1770840085094,19.37387172,79.739,79.685,11.3017]
[1770840086690,11.2961,79.725,79.685,11.3017]
[1770840087595,19.86123367,79.724,79.685,11.3017]
[1770840088191,11.2951,79.732,79.685,11.3017]
[1770840088387,19.86123367,79.731,79.685,11.3017]
[1770840089197,19.86123367,79.731,79.673,20.65533874]
[1770840089198,11.2963,79.724,79.678,11.3027]
[1770840089391,10.79861247,79.74,79.678,11.3027]
[1770840089392,19.86123367,79.723,79.678,11.3027]
[1770840090898,31.15803367,79.72,79.678,11.3027]
[1770840091098,19.86123367,79.739,79.686,20.19360134]
[1770840091997,19.86123367,79.739,79.69,20.19360134]
[1770840092601,19.86123367,79.771,79.706,20.19360134]
[1770840093804,19.86123367,79.771,79.718,11.297]
[1770840093805,11.2911,79.761,79.718,11.297]
[1770840094405,19.86123367,79.754,79.681,20.19360134]
[1770840095408,31.15673367,79.73,79.685,11.3017]
[1770840096299,11.2942,79.739,79.69,20.19360134]
[1770840097409,19.86123367,79.748,79.705,11.2988]
[1770840098014,19.86123367,79.748,79.703,20.19360134]
[1770840098214,11.2932,79.746,79.705,20.19360134]
[1770840099720,11.2932,79.746,79.706,11.2987]
[1770840099919,11.2916,79.757,79.705,20.19360134]
[1770840100111,19.86123367,79.763,79.705,20.19360134]
[1770840100310,11.2896,79.771,79.72,20.19360134]
[1770840100513,8.91581207,79.777,79.72,20.19360134]
[1770840100715,10.79861247,79.8,79.72,20.19360134]
[1770840100716,8.91784367,79.792,79.721,20.19360134]
[1770840100918,28.77907734,79.791,79.721,20.19360134]
[1770840101224,31.14843367,79.788,79.745,11.2932]
[1770840101426,8.91784367,79.787,79.745,11.2932]
[1770840101614,8.91784367,79.786,79.745,11.2932]
[1770840101814,8.91784367,79.785,79.745,11.2932]
[1770840102016,8.91784367,79.784,79.745,11.2932]
[1770840102321,8.91784367,79.783,79.745,11.2932]
[1770840102517,8.91784367,79.782,79.745,11.2932]
[1770840102715,19.86123367,79.818,79.756,20.19360134]
[1770840104223,19.86123367,79.818,79.773,20.19360134]
[1770840104526,10.79861247,79.84,79.773,20.19360134]
[1770840104527,19.86123367,79.833,79.773,20.19360134]
[1770840104724,19.86123367,79.833,79.784,11.2876]
[1770840104924,19.86123367,79.839,79.785,20.19360134]
[1770840105827,31.14123367,79.839,79.785,20.19360134]
[1770840106620,11.2787,79.848,79.791,20.19360134]
[1770840107825,11.2787,79.848,79.793,20.19360134]
[1770840108328,19.86123367,79.853,79.793,20.19360134]
[1770840108524,19.86123367,79.879,79.81,20.19360134]
[1770840108720,19.86123367,79.883,79.81,20.19360134]
[1770840108920,19.86123367,79.879,79.81,20.19360134]
[1770840109115,19.86123367,79.879,79.825,20.19360134]
[1770840109730,19.86123367,79.879,79.799,20.19360134]
[1770840110224,19.86123367,79.877,79.825,20.19360134]
[1770840111527,10.79861247,79.88,79.825,20.19360134]
[1770840111528,18.86112084,79.874,79.825,20.19360134]
[1770840111731,18.86112084,79.874,79.808,18.70159053]
[1770840112036,18.86112084,79.859,79.791,18.70159053]
[1770840112728,18.86112084,79.855,79.793,18.70159053]
[1770840113726,18.86112084,79.877,79.819,18.70159053]
[1770840113929,18.86112084,79.899,79.819,18.70159053]
[1770840114120,18.86112084,79.879,79.819,18.70159053]
[1770840114329,18.86112084,79.869,79.803,18.70159053]
[1770840114825,18.86112084,79.866,79.81,11.2841]
[1770840116533,18.86112084,79.859,79.803,18.70159053]
[1770840116739,18.86112084,79.859,79.802,11.2852]
[1770840117038,30.14022084,79.846,79.791,18.70159053]
[1770840117427,18.86112084,79.845,79.791,18.70159053]
[1770840117831,18.86112084,79.845,79.792,11.2865]
[1770840118024,30.14092084,79.841,79.791,18.70159053]
[1770840118227,30.14092084,79.841,79.735,37.66]
[1770840118228,18.86112084,79.839,79.771,18.70159053]
[1770840118626,18.86112084,79.819,79.771,18.70159053]
[1770840119038,18.86112084,79.834,79.771,18.70159053]
[1770840119733,11.2814,79.829,79.774,11.289]
[1770840119933,11.2814,79.829,79.775,18.70159053]
[1770840120342,18.86112084,79.828,79.775,18.70159053]
[1770840120640,18.86112084,79.828,79.782,11.288]
[1770840121033,10.76461472,79.82,79.753,18.70159053]
[1770840121236,18.86112084,79.819,79.753,18.70159053]
[1770840122035,18.86112084,79.817,79.753,18.70159053]
[1770840122242,18.86112084,79.799,79.753,18.70159053]
[1770840123040,11.2858,79.798,79.754,11.2919]
[1770840123239,10.76461472,79.8,79.755,18.70159053]
[1770840124431,10.76461472,79.82,79.76,18.70159053]
[1770840124745,18.86112084,79.819,79.76,18.70159053]
[1770840125543,11.283,79.818,79.769,11.2897]
[1770840125842,18.86112084,79.835,79.77,18.70159053]
[1770840126538,11.2824,79.822,79.772,11.2894]
[1770840126743,18.86112084,79.821,79.772,11.2894]
[1770840127341,18.86112084,79.821,79.776,11.2888]
[1770840127942,11.2827,79.82,79.776,11.2888]
[1770840128243,18.86112084,79.819,79.773,18.70159053]
[1770840128444,11.2819,79.826,79.773,18.70159053]
[1770840128844,18.86112084,79.825,79.758,18.70159053]
[1770840129240,11.2827,79.82,79.758,18.70159053]
[1770840129545,18.86112084,79.819,79.758,18.70159053]
[1770840129741,29.62573556,79.81,79.758,18.70159053]
[1770840129942,11.2834,79.815,79.758,18.70159053]
[1770840130848,30.14452084,79.815,79.764,11.2906]
[1770840131644,18.86112084,79.832,79.772,18.70159053]
[1770840132247,11.2822,79.824,79.777,18.70159053]
[1770840132949,10.76461472,79.86,79.785,18.70159053]
[1770840133853,29.62573556,79.86,79.785,18.70159053]
[1770840134151,77.24339687,80.017,79.78,10.76461472]
[1770840134152,11.2766,79.863,79.815,18.70159053]
[1770840134547,11.2776,79.856,79.815,18.70159053]
[1770840134850,18.86112084,79.862,79.787,18.70159053]
[1770840135350,18.86112084,79.849,79.787,18.70159053]
[1770840135946,11.2805,79.836,79.787,29.98879053]
[1770840136142,18.86112084,79.839,79.787,29.98879053]
[1770840136343,18.86112084,79.839,79.787,18.70159053]
[1770840136653,18.86112084,79.839,79.76,122.32461472]
[1770840136654,18.86112084,79.839,79.771,18.70159053]
[1770840137454,18.86112084,79.839,79.787,11.2873]
[1770840138852,102.58,79.862,79.796,18.70159053]
[1770840138853,18.86112084,79.849,79.796,18.70159053]
[1770840139156,18.86112084,79.849,79.767,18.70159053]
[1770840139757,11.2794,79.843,79.791,11.2867]
[1770840140750,11.2794,79.843,79.798,11.2856]
[1770840141150,18.86112084,79.849,79.791,19.92677195]
[1770840141354,18.86112084,79.849,79.803,11.2849]
[1770840141858,18.86112084,79.849,79.798,19.92677195]
[1770840142459,11.2796,79.842,79.798,19.92677195]
[1770840142660,18.86112084,79.849,79.798,19.92677195]
[1770840143758,11.2804,79.836,79.798,19.92677195]
[1770840144348,18.86112084,79.849,79.798,19.92677195]
[1770840144548,11.2801,79.839,79.799,11.2855]
[1770840144753,11.2801,79.839,79.77,100.0]
[1770840144754,30.11139271,79.839,79.771,19.92677195]
[1770840145055,18.83129271,79.838,79.771,19.92677195]
[1770840145553,11.2819,79.826,79.771,19.92677195]
[1770840145753,18.83129271,79.838,79.771,19.92677195]
[1770840146756,11.2808,79.834,79.784,11.2877]
[1770840148556,18.83129271,79.838,79.784,11.2877]
[1770840148557,11.2816,79.828,79.784,11.2877]
[1770840148760,11.2816,79.828,79.771,19.92677195]
[1770840148761,19.69834965,79.828,79.757,18.86486793]
[1770840149164,19.69834965,79.809,79.757,18.86486793]
[1770840150964,19.69834965,79.809,79.713,15.51282678]
[1770840150965,19.69834965,79.789,79.737,18.86486793]
[1770840151164,19.69834965,79.789,79.703,18.86486793]
[1770840151460,11.2894,79.773,79.727,18.86486793]
[1770840151661,30.98774965,79.773,79.727,18.86486793]
[1770840152668,19.69834965,79.782,79.732,18.86486793]
[1770840152967,19.69834965,79.782,79.701,18.86486793]
[1770840153165,19.69834965,79.758,79.712,11.2978]
[1770840153557,10.76461472,79.77,79.713,18.86486793]
[1770840153759,19.69834965,79.767,79.716,18.86486793]
[1770840153959,19.69834965,79.767,79.701,18.86486793]
[1770840154173,19.69834965,79.759,79.701,18.86486793]
[1770840154974,19.69834965,79.757,79.701,18.86486793]
[1770840155861,11.2917,79.757,79.705,18.86486793]
[1770840156061,19.69834965,79.772,79.705,18.86486793]
[1770840156266,118.84,79.8,79.705,18.86486793]
[1770840156267,19.69834965,79.769,79.705,18.86486793]
[1770840156773,11.2918,79.756,79.705,18.86486793]
[1770840156968,19.69834965,79.769,79.705,18.86486793]
[1770840158273,19.69834965,79.769,79.716,11.2973]
[1770840159177,11.2908,79.763,79.708,18.86486793]
[1770840159381,30.98914965,79.763,79.708,18.86486793]
[1770840160782,30.98914965,79.763,79.686,147.02]
[1770840160783,19.69834965,79.763,79.714,18.86486793]
[1770840161082,11.2895,79.772,79.714,18.86486793]
[1770840161286,19.69834965,79.781,79.714,18.86486793]
[1770840162375,19.69834965,79.781,79.698,122.24]
[1770840162376,19.69834965,79.758,79.701,11.2994]
[1770840162572,19.69834965,79.773,79.702,18.86486793]
[1770840162879,30.98774965,79.773,79.72,18.86486793]
[1770840163482,11.2901,79.768,79.72,18.86486793]
[1770840164083,11.2911,79.761,79.72,18.86486793]
[1770840164278,10.76461472,79.79,79.713,11.2978]
[1770840164279,19.69834965,79.76,79.713,11.2978]
[1770840165084,30.99134965,79.748,79.705,18.86486793]
[1770840165385,30.99134965,79.748,79.668,22.6083]
[1770840165386,19.69834965,79.747,79.661,18.86486793]
[1770840165584,10.76461472,79.73,79.661,18.86486793]
[1770840166077,10.76461472,79.73,79.684,18.86486793]
[1770840166278,19.69834965,79.729,79.684,18.86486793]
[1770840166474,10.76461472,79.73,79.684,18.86486793]
[1770840166675,19.69834965,79.739,79.684,18.86486793]
[1770840167275,11.2969,79.72,79.675,11.3031]
[1770840167480,19.69834965,79.719,79.675,11.3031]
[1770840168890,11.2973,79.717,79.675,11.3031]
[1770840169491,11.2984,79.709,79.666,11.3044]
[1770840169691,19.69834965,79.708,79.659,18.86486793]
[1770840169987,22.5882,79.74,79.641,18.86486793]
[1770840169988,19.69834965,79.699,79.641,18.86486793]
[1770840170593,11.3005,79.694,79.643,19.67039627]
[1770840171890,19.69834965,79.699,79.651,19.67039627]
[1770840172095,11.2992,79.703,79.651,19.67039627]
[1770840172486,18.99238629,79.714,79.651,19.67039627]
[1770840173089,11.2961,79.725,79.676,19.67039627]
[1770840173287,18.99238629,79.724,79.676,19.67039627]
[1770840173487,18.99238629,79.724,79.651,19.67039627]
[1770840173888,18.99238629,79.712,79.668,11.3041]
[1770840175389,11.2992,79.704,79.659,11.3054]
[1770840175698,30.29158629,79.704,79.659,11.3054]
[1770840177092,11.3,79.698,79.659,11.3054]
[1770840177490,11.3,79.698,79.651,19.67039627]
[1770840177491,18.99238629,79.698,79.649,11.3069]
[1770840178799,30.29328629,79.691,79.649,11.3069]
[1770840178998,10.80223165,79.74,79.611,19.67039627]
[1770840178999,18.99238629,79.679,79.611,19.67039627]
[1770840179689,18.99238629,79.679,79.626,11.3101]
[1770840180290,18.99238629,79.696,79.633,19.67039627]
[1770840180802,30.29268629,79.696,79.653,11.3063]
[1770840181096,18.99238629,79.696,79.653,11.3063]
[1770840181687,18.99238629,79.689,79.633,19.67039627]
[1770840182803,18.99238629,79.689,79.642,11.3078]
[1770840183295,18.99238629,79.675,79.589,19.67039627]
[1770840183500,18.99238629,79.659,79.589,19.67039627]
[1770840183890,18.99238629,79.642,79.599,11.3139]
[1770840184097,18.99238629,79.639,79.571,19.67039627]
[1770840184505,10.80223165,79.64,79.576,11.3171]
[1770840184506,18.99238629,79.624,79.576,11.3171]
[1770840185196,18.99238629,79.642,79.576,19.67039627]
[1770840185493,18.99238629,79.639,79.576,19.67039627]
[1770840185699,11.3106,79.623,79.576,19.67039627]
[1770840186095,30.30298629,79.623,79.576,19.67039627]
[1770840186500,18.99238629,79.656,79.576,19.67039627]
[1770840187001,18.99238629,79.656,79.57,10.80223165]
[1770840187002,11.308,79.642,79.577,19.67039627]
[1770840188104,11.3089,79.635,79.577,19.67039627]
[1770840188398,118.8,79.675,79.577,19.67039627]
[1770840188399,18.99238629,79.639,79.577,19.67039627]
[1770840189199,11.3111,79.619,79.577,19.67039627]
[1770840189400,18.99238629,79.624,79.56,19.67039627]
[1770840190294,11.3123,79.611,79.56,19.67039627]
[1770840190704,18.99238629,79.624,79.56,19.67039627]
[1770840191007,10.80223165,79.64,79.56,19.67039627]
[1770840191307,18.99238629,79.658,79.571,19.67039627]
[1770840191601,18.99238629,79.658,79.591,19.67039627]
[1770840192104,11.3059,79.656,79.593,19.67039627]
[1770840192794,18.99238629,79.694,79.611,19.67039627]
[1770840192994,18.99238629,79.719,79.631,19.67039627]
[1770840194000,11.3003,79.696,79.636,11.3086]
[1770840194198,18.99238629,79.719,79.651,19.67039627]
[1770840194902,11.2988,79.707,79.653,19.67039627]
[1770840195102,18.99238629,79.72,79.653,19.67039627]
[1770840195300,18.99238629,79.719,79.653,19.67039627]